bitfinex/quotes_ETHUSD_20250519
["timestamp","ask_amount","ask_price","bid_price","bid_amount"]
[1747636960755,4.21940928,2370.0,2369.9,9.117]
[1747636961860,4.21985653,2369.8,2369.6,1.0847011]
[1747636962156,4.21985653,2369.8,2369.6,9.8904]
[1747636962157,4.21987285,2369.8,2369.6,9.8904]
[1747636962357,9.023,2370.6,2369.6,9.8904]
[1747636962675,4.21963234,2369.9,2369.7,0.04219393]
[1747636962821,4.21963234,2369.9,2369.6,9.8904]
[1747636963034,4.21963234,2369.9,2369.6,10.21095199]
[1747636963234,4.21874576,2370.4,2369.6,10.21095199]
[1747636963235,4.21851929,2370.5,2369.7,8.04219485]
[1747636963429,0.8141,2370.7,2369.7,8.0]
[1747636963733,4.21914011,2370.2,2369.7,8.0]
[1747636964146,4.21924214,2370.1,2369.7,8.0]
[1747636965167,4.99007998,2371.0,2369.8,0.85429121]
[1747636965376,4.99007998,2371.0,2370.0,8.0]
[1747636965377,4.21868482,2370.5,2370.0,8.0]
[1747636965673,4.21834134,2370.6,2370.2,0.7778]
[1747636965846,4.99008811,2371.0,2370.2,0.7778]
[1747636966173,4.21881635,2370.4,2370.2,0.7778]
[1747636967478,4.21887524,2370.3,2370.2,0.7778]
[1747636967637,4.21887524,2370.3,2370.2,9.024]
[1747636967838,4.21940928,2370.0,2369.9,0.7983]
[1747636968067,4.21940928,2370.0,2369.9,17.8223]
[1747636968274,0.7608,2370.4,2369.8,9.024]
[1747636968445,4.21958732,2369.9,2369.8,9.024]
[1747636969196,4.2194797,2370.0,2369.8,9.024]
[1747636969483,4.21934336,2370.1,2369.8,9.024]
[1747636969868,4.21851929,2370.5,2369.8,9.024]
[1747636970173,4.21940345,2370.1,2369.8,9.024]
[1747636970379,4.21834134,2370.6,2369.8,10.07766083]
[1747636970582,4.21851929,2370.5,2369.8,10.07766083]
[1747636970762,4.21935863,2370.1,2369.8,10.07766083]
[1747636970962,4.21950863,2370.0,2369.8,10.07766083]
[1747636971382,4.21950863,2370.0,2369.9,0.25819017]
[1747636971681,0.8104,2370.7,2369.9,0.25819017]
[1747636971984,4.21922265,2370.2,2369.9,0.25819017]
[1747636972160,4.21928729,2370.1,2369.9,0.25819017]
[1747636972788,3.33820449,2370.7,2369.8,10.07766083]
[1747636972958,4.21896426,2370.3,2369.8,10.07766083]
[1747636973161,4.97985181,2371.1,2369.9,0.8061]
[1747636973361,9.72296806,2371.0,2370.0,9.024]
[1747636973681,4.21882959,2370.4,2370.0,9.024]
[1747636973854,4.21872602,2370.4,2370.1,8.0]
[1747636974285,4.21872602,2370.4,2370.2,0.25808331]
[1747636974488,4.21887524,2370.3,2370.2,0.25808331]
[1747636975671,4.21879501,2370.4,2370.1,9.025]
[1747636975977,4.21879501,2370.4,2370.1,10.43006653]
[1747636976900,4.21873819,2370.4,2370.1,10.43006653]
[1747636977402,4.21905324,2370.2,2370.1,9.025]
[1747636977583,4.21905324,2370.2,2370.1,9.15677834]
[1747636978097,4.21895891,2370.3,2370.1,9.15677834]
[1747636978395,4.21870607,2370.4,2370.1,9.025]
[1747636979096,4.21826376,2370.7,2370.2,0.1739539]
[1747636979307,4.2184728,2370.6,2370.3,0.13176786]
[1747636979901,4.2184728,2370.6,2370.1,13.24415178]
[1747636980190,4.2185364,2370.5,2370.2,0.13175886]
[1747636980494,4.21835818,2370.6,2370.2,9.41273326]
[1747636980662,4.21835818,2370.6,2370.3,0.13175886]
[1747636980857,7.97,2371.2,2370.4,0.84868345]
[1747636981100,4.21711505,2371.3,2370.8,4.21789655]
[1747636981401,4.21729371,2371.2,2371.0,0.8065]
[1747636982063,4.21729371,2371.2,2371.1,0.13172882]
[1747636982658,4.21682177,2371.5,2371.1,0.13172882]
[1747636982859,4.97362525,2371.7,2371.1,4.34903555]
[1747636983085,4.21624706,2371.8,2371.2,0.30026918]
[1747636983291,8.34818325,2372.3,2371.2,0.30026918]
[1747636983292,4.21549616,2372.2,2371.2,0.258101]
[1747636983486,4.21666139,2371.6,2371.3,0.13172882]
[1747636983688,4.2163006,2371.8,2371.4,9.25933448]
[1747636983875,4.2164431,2371.7,2371.4,9.25933448]
[1747636984064,4.21656265,2371.6,2371.5,0.36705512]
[1747636984274,4.21656265,2371.6,2371.5,0.13170774]
[1747636984275,4.63821892,2371.6,2371.5,0.13170774]
[1747636984471,4.21656265,2371.6,2371.5,0.13170774]
[1747636984781,4.21682465,2371.5,2371.3,9.34619042]
[1747636984983,4.21674045,2371.5,2371.4,0.13170852]
[1747636985591,4.21674045,2371.5,2371.4,0.36721129]
[1747636985786,4.21560948,2372.2,2371.4,0.36721129]
[1747636986013,4.21641345,2371.7,2371.5,0.13170852]
[1747636986212,4.21667977,2371.6,2371.5,9.15470852]
[1747636986382,4.21626375,2371.8,2371.5,9.15470852]
[1747636986383,4.2164318,2371.7,2371.5,9.15470852]
[1747636986584,4.2164318,2371.7,2371.6,0.13170852]
[1747636986883,4.21656745,2371.6,2371.3,0.32219042]
[1747636987105,4.21656745,2371.6,2371.2,8.0]
[1747636987510,4.21634905,2371.8,2371.3,0.2580591]
[1747636987813,4.21616093,2371.9,2371.5,0.807]
[1747636988108,4.21616093,2371.9,2371.6,9.023]
[1747636988326,4.21638487,2371.7,2371.6,9.023]
[1747636989515,4.21638487,2371.7,2371.5,0.807]
[1747636989720,4.21638487,2371.7,2371.3,0.31497306]
[1747636989721,4.21638487,2371.7,2371.6,9.022]
[1747636990411,4.21660176,2371.6,2371.5,9.022]
[1747636991109,4.2170961,2371.3,2371.2,27.0203]
[1747636991310,4.2170961,2371.3,2371.2,27.236]
[1747636991685,8.3486974,2372.0,2371.3,8.0]
[1747636991686,0.7992,2372.0,2371.3,8.0]
[1747636992023,4.21647755,2371.7,2371.4,0.8350656]
[1747636992181,4.21674045,2371.5,2371.4,0.7929]
[1747636992381,4.2170961,2371.3,2371.2,27.55498687]
[1747636992609,4.2170961,2371.3,2371.2,18.214]
[1747636997526,4.21780758,2370.9,2370.8,0.791]
[1747636997726,4.2181507,2370.8,2370.5,18.64295629]
[1747636997897,4.21806804,2370.8,2370.5,18.64295629]
[1747636998230,4.21827671,2370.7,2370.6,0.25786713]
[1747636998743,4.21793099,2370.9,2370.6,0.25786713]
[1747636998896,0.7973,2371.4,2370.6,0.25786713]
[1747636999090,4.21782868,2370.9,2370.6,0.25786713]
[1747636999523,4.21782868,2370.9,2370.7,0.25786713]
[1747636999692,4.2170961,2371.3,2370.7,0.25786713]
[1747636999887,4.21716587,2371.3,2370.8,0.7554]
[1747637000123,4.21688254,2371.5,2371.0,8.0]
[1747637000314,4.2164449,2371.7,2371.0,8.0]
[1747637000513,4.21703401,2371.4,2371.0,8.0]
[1747637000720,4.21736481,2371.2,2371.0,8.0]
[1747637000902,4.21736481,2371.2,2371.1,0.25786713]
[1747637001311,4.21736481,2371.2,2371.1,0.57694209]
[1747637001637,4.21736481,2371.2,2371.1,0.25786713]
[1747637003146,4.21736481,2371.2,2371.1,9.014]
[1747637004194,4.21736481,2371.2,2371.1,9.27186713]
[1747637004552,4.21736481,2371.2,2371.1,0.25786713]
[1747637004714,9.98044259,2371.2,2371.1,0.25786713]
[1747637005107,4.21798549,2370.8,2370.7,0.25786713]
[1747637005518,5.01678549,2370.8,2370.7,0.25786713]
[1747637006100,4.21887524,2370.3,2370.2,0.32360613]
[1747637006311,4.21887524,2370.3,2370.2,0.23556786]
[1747637006496,4.21909889,2370.2,2370.0,9.015]
[1747637006699,4.21905324,2370.2,2370.0,9.015]
[1747637007041,4.21923125,2370.1,2370.0,9.015]
[1747637007829,4.21923125,2370.1,2370.0,9.25076961]
[1747637008000,4.21923125,2370.1,2370.0,9.2507776]
[1747637008403,4.21923125,2370.1,2370.0,9.25077756]
[1747637008609,4.21816341,2370.7,2370.0,9.25077756]
[1747637008813,4.21905324,2370.2,2370.1,0.23577756]
[1747637009016,5.55491517,2370.7,2370.1,0.23603739]
[1747637009334,4.21923125,2370.1,2370.0,9.27356309]
[1747637009639,4.21923125,2370.1,2370.0,9.51007147]
[1747637009935,4.21923125,2370.1,2370.0,9.51007133]
[1747637010131,4.2184555,2370.6,2370.0,9.51007133]
[1747637010333,0.7988,2370.8,2370.0,9.83348779]
[1747637010500,4.21853658,2370.5,2370.1,8.23650824]
[1747637010706,4.21849168,2370.6,2370.2,0.27869396]
[1747637010907,4.21851292,2370.6,2370.3,0.23650824]
[1747637011136,4.2182596,2370.7,2370.4,0.23650824]
[1747637011330,4.21846395,2370.6,2370.5,0.23650824]
[1747637011751,0.8322,2371.1,2370.5,10.02980824]
[1747637011906,4.21834134,2370.6,2370.5,0.49507133]
[1747637012305,4.21834134,2370.6,2370.5,9.27456309]
[1747637012507,5.85479493,2370.6,2370.5,0.25856309]
[1747637013446,4.21870716,2370.4,2370.1,9.016]
[1747637013652,4.21860971,2370.5,2370.2,0.23562428]
[1747637013952,4.2182506,2370.7,2370.3,0.23561596]
[1747637014290,5.00815721,2370.9,2370.0,0.32341646]
[1747637014556,5.00815721,2370.9,2369.9,9.20725629]
[1747637014557,4.21914593,2370.2,2370.1,0.23565225]
[1747637014706,4.21914593,2370.2,2370.1,9.25165225]
[1747637014911,4.21886744,2370.4,2370.1,9.50999707]
[1747637015212,4.21896882,2370.3,2370.2,0.23565225]
[1747637016044,4.21905324,2370.2,2370.1,0.25834482]
[1747637016243,4.21905324,2370.2,2370.1,0.2357635]
[1747637016456,4.21923125,2370.1,2369.8,27.228]
[1747637016657,4.21899249,2370.3,2369.8,27.54835008]
[1747637016863,0.7934,2370.6,2369.9,8.0]
[1747637017156,4.21908415,2370.2,2369.9,8.0]
[1747637017655,9.008,2370.8,2369.9,8.0]
[1747637017825,4.21888048,2370.3,2369.9,8.0]
[1747637018013,4.21887451,2370.4,2369.9,12.2195382]
[1747637018208,4.21889568,2370.3,2369.9,8.23601482]
[1747637018463,4.21889568,2370.3,2370.0,0.13177771]
[1747637018754,4.21905324,2370.2,2370.1,0.13177771]
[1747637018921,4.21905324,2370.2,2370.1,9.14777771]
[1747637019127,4.21905324,2370.2,2370.1,9.38386007]
[1747637020052,4.21905324,2370.2,2370.1,0.36786007]
[1747637020255,4.21905324,2370.2,2370.1,0.49428527]
[1747637020463,4.21905324,2370.2,2370.1,0.62606775]
[1747637021763,5.13841708,2370.2,2370.1,0.62606775]
[1747637022255,5.13841708,2370.2,2370.1,0.36786484]
[1747637022469,4.21976538,2369.8,2369.7,0.32305252]
[1747637022960,4.21976538,2369.8,2369.7,0.55919877]
[1747637023163,4.21976538,2369.8,2369.7,0.69101285]
[1747637023670,4.21976538,2369.8,2369.7,0.4548666]
[1747637023961,4.21976538,2369.8,2369.7,0.45485943]
[1747637025384,4.21976538,2369.8,2369.7,0.13180691]
[1747637026181,4.22043457,2369.5,2369.3,9.018]
[1747637026532,4.22043457,2369.5,2369.4,0.13180854]
[1747637026835,4.22043457,2369.5,2369.4,0.62608549]
[1747637027361,4.22043457,2369.5,2369.4,0.62610009]
[1747637029054,4.22029964,2369.5,2369.4,0.62610009]
[1747637029255,4.22029964,2369.5,2369.4,0.62594318]
[1747637029463,4.21995195,2369.7,2369.4,1.62024928]
[1747637029767,5.00133419,2370.0,2369.4,1.62024928]
[1747637029768,4.22029964,2369.5,2369.4,1.62024928]
[1747637029983,4.22016301,2369.6,2369.4,1.62024928]
[1747637030266,5.00134151,2370.0,2369.4,1.62024928]
[1747637030267,4.22029964,2369.5,2369.4,1.62024928]
[1747637030471,4.22006924,2369.7,2369.5,0.25837706]
[1747637030669,4.21932838,2370.1,2369.7,0.8126]
[1747637030670,4.21937018,2370.1,2369.7,0.8126]
[1747637030872,4.21976538,2369.8,2369.7,0.8126]
[1747637031077,4.22012153,2369.6,2369.5,0.25837706]
[1747637031976,4.22012153,2369.6,2369.5,0.62602711]
[1747637033076,4.22012153,2369.6,2369.5,0.39019547]
[1747637033259,0.826,2370.1,2369.5,0.39019547]
[1747637033465,4.22011617,2369.7,2369.5,0.25837706]
[1747637033668,4.21994345,2369.7,2369.6,9.006]
[1747637033873,4.22012153,2369.6,2369.5,0.25837706]
[1747637034059,5.05342153,2369.6,2369.5,0.25837706]
[1747637034479,5.05342153,2369.6,2369.1,18.54005252]
[1747637034480,4.22083403,2369.2,2369.1,18.54005252]
[1747637034860,4.22083403,2369.2,2369.1,18.67189315]
[1747637035392,4.22083403,2369.2,2369.1,18.90791201]
[1747637036092,4.22083403,2369.2,2369.1,0.69091201]
[1747637036265,5.06498627,2369.2,2369.1,0.69091201]
[1747637036474,4.22083403,2369.2,2369.1,0.49470962]
[1747637036969,5.04663403,2369.2,2369.1,0.49470962]
[1747637037167,5.59663403,2369.2,2369.1,0.25869076]
[1747637037367,13.56663403,2369.2,2369.1,0.25869076]
[1747637037700,16.65933771,2369.2,2369.1,0.25869076]
[1747637038293,16.65933771,2369.2,2368.8,0.32305252]
[1747637038294,12.77136856,2368.9,2368.8,0.32305252]
[1747637038598,34.63748292,2368.9,2368.8,0.32305252]
[1747637040178,34.63748292,2368.9,2367.4,1.117728]
[1747637040179,4.22350804,2367.7,2367.4,1.44078052]
[1747637040499,4.22375427,2367.6,2367.5,9.009]
[1747637040806,0.8,2368.5,2367.6,8.0]
[1747637041092,4.22256053,2368.3,2367.9,0.7681]
[1747637041298,4.22236108,2368.4,2368.1,8.0]
[1747637041500,0.8,2368.3,2367.5,0.7681]
[1747637041801,4.22368643,2367.6,2367.5,0.7681]
[1747637042424,4.22324981,2367.9,2367.4,0.32305252]
[1747637042720,4.22324981,2367.9,2367.5,8.8303]
[1747637042865,9.801,2368.3,2367.5,8.8303]
[1747637043064,4.22341922,2367.8,2367.5,8.8303]
[1747637043384,4.22368643,2367.6,2367.5,0.8303]
[1747637043993,9.0,2368.6,2367.8,4.22330952]
[1747637044160,4.22275013,2368.2,2367.9,1.20973095]
[1747637044566,4.22267565,2368.2,2367.9,1.20973095]
[1747637044771,4.22279528,2368.1,2367.9,1.20973095]
[1747637044977,0.8194,2368.7,2367.9,1.20973095]
[1747637045174,4.22190323,2368.6,2367.9,1.20973095]
[1747637045379,4.22294394,2368.1,2367.9,0.7874]
[1747637045591,4.22294394,2368.1,2368.0,0.25756893]
[1747637046809,4.22404325,2367.4,2367.3,0.32305252]
[1747637048267,4.22368286,2367.7,2367.3,0.32305252]
[1747637048475,4.2236406,2367.7,2367.3,0.32305252]
[1747637048775,4.22351637,2367.7,2367.3,0.32305252]
[1747637048975,9.764,2368.1,2367.3,0.32305252]
[1747637048976,4.22369123,2367.6,2367.3,0.32305252]
[1747637049304,4.22391447,2367.5,2367.3,0.32305252]
[1747637049667,0.765,2368.1,2367.3,0.32305252]
[1747637049868,4.22336795,2367.8,2367.5,0.7975]
[1747637050204,9.7998,2368.4,2367.5,0.7975]
[1747637050205,0.7998,2368.4,2367.5,9.8095]
[1747637050383,4.22291269,2368.1,2367.5,17.8095]
[1747637050581,4.22239422,2368.4,2367.9,4.22306571]
[1747637050886,4.22277405,2368.2,2367.9,8.999]
[1747637051076,4.22273822,2368.2,2368.0,8.0]
[1747637051276,4.22279464,2368.1,2367.9,8.999]
[1747637051478,4.22297297,2368.0,2367.7,0.7893]
[1747637051698,4.22297297,2368.0,2367.8,8.25751787]
[1747637052109,4.22183008,2368.7,2367.8,8.25751787]
[1747637052304,4.22302075,2368.0,2367.8,8.25751787]
[1747637052682,4.22302075,2368.0,2367.8,0.25751787]
[1747637053006,4.22302075,2368.0,2367.9,17.012]
[1747637053503,4.22315131,2367.9,2367.8,0.25751787]
[1747637053690,4.22315131,2367.9,2367.8,17.26951787]
[1747637053877,4.22315131,2367.9,2367.8,9.26951787]
[1747637054081,4.22315131,2367.9,2367.8,9.012]
[1747637054283,4.22350804,2367.7,2367.6,9.012]
[1747637054683,4.22350804,2367.7,2367.5,0.7571]
[1747637054882,4.22350804,2367.7,2367.6,17.012]
[1747637055408,4.22350804,2367.7,2367.6,17.26965907]
[1747637055605,0.7774,2368.3,2367.6,17.26965907]
[1747637055807,4.2229415,2368.1,2367.7,8.0]
[1747637056302,4.22269028,2368.2,2367.7,4.22350318]
[1747637056490,4.22283228,2368.1,2367.7,8.0]
[1747637056689,4.22270065,2368.2,2367.7,12.22344373]
[1747637056896,4.22270065,2368.2,2367.8,0.8118]
[1747637057097,4.22251782,2368.3,2367.9,9.30352437]
[1747637057410,4.22251782,2368.3,2367.9,18.30052437]
[1747637057581,4.22251782,2368.3,2368.0,0.25765907]
[1747637057784,4.22235403,2368.4,2368.1,8.997]
[1747637058018,4.22244716,2368.3,2368.1,8.997]
[1747637058195,4.22228029,2368.4,2368.1,9.52506048]
[1747637058721,0.7502,2368.9,2368.2,8.0]
[1747637059015,4.22159572,2368.8,2368.4,8.0]
[1747637059216,4.22146348,2368.9,2368.4,21.21825272]
[1747637059418,4.22146348,2368.9,2368.4,16.996]
[1747637059722,0.7502,2369.2,2368.3,0.46480699]
[1747637059723,0.7502,2369.2,2368.3,0.25787004]
[1747637059887,4.22243803,2368.3,2368.2,1.15015252]
[1747637060085,4.22243803,2368.3,2368.2,0.32305252]
[1747637060521,4.22235074,2368.4,2368.2,0.32305252]
[1747637060709,4.22215594,2368.5,2368.2,0.32305252]
[1747637060916,4.22206807,2368.6,2368.2,0.32305252]
[1747637061102,4.22173116,2368.7,2368.3,0.25814643]
[1747637061422,4.98239787,2369.0,2368.3,0.25814643]
[1747637061586,4.22145044,2368.9,2368.4,8.7878]
[1747637061790,4.22163918,2368.8,2368.5,8.996]
[1747637062211,4.2217588,2368.7,2368.6,0.25814643]
[1747637062604,4.2217588,2368.7,2368.6,9.38601084]
[1747637063090,9.7907,2369.4,2368.6,9.38601084]
[1747637063091,4.22065588,2369.3,2368.6,9.38601084]
[1747637063309,4.22172499,2368.7,2368.6,9.25414643]
[1747637063929,4.2215641,2368.8,2368.6,9.48991853]
[1747637064096,4.2215641,2368.8,2368.6,9.62178333]
[1747637064291,4.22139501,2368.9,2368.7,0.1318648]
[1747637064495,4.22154677,2368.8,2368.6,9.25414643]
[1747637064728,4.22154677,2368.8,2368.6,9.56915705]
[1747637065223,4.22143473,2368.9,2368.7,0.13186387]
[1747637065528,4.22130419,2369.0,2368.8,0.3900103]
[1747637065739,0.7967,2369.4,2368.8,0.3900103]
[1747637065897,0.45042657,2369.7,2368.9,0.89986387]
[1747637065898,4.22094584,2369.2,2368.9,0.89986387]
[1747637066097,4.22094584,2369.2,2369.0,0.13186387]
[1747637066298,4.22094584,2369.2,2369.1,0.13186387]
[1747637066726,4.22094584,2369.2,2368.9,0.768]
[1747637066905,4.22094584,2369.2,2369.1,0.13184695]
[1747637067529,4.22094584,2369.2,2369.1,0.38999338]
[1747637067735,4.22072144,2369.3,2369.1,9.38499338]
[1747637068250,4.22053861,2369.4,2369.1,9.38499338]
[1747637068414,4.22065588,2369.3,2369.2,0.13184695]
[1747637069232,4.22065588,2369.3,2369.2,0.38999338]
[1747637069835,4.22055685,2369.4,2369.2,0.38999338]
[1747637070140,4.22065588,2369.3,2369.2,0.25814643]
[1747637070436,4.22065588,2369.3,2369.2,0.38997947]
[1747637072201,4.22059061,2369.4,2369.2,0.38997947]
[1747637072533,4.22059709,2369.4,2369.2,9.25214643]
[1747637072695,4.22018781,2369.6,2369.3,0.13183051]
[1747637072696,4.22012668,2369.6,2369.3,0.13183051]
[1747637072899,4.22003046,2369.7,2369.2,14.1532262]
[1747637073096,4.22003046,2369.7,2369.3,0.13182575]
[1747637073353,4.21958732,2369.9,2369.4,5.01645438]
[1747637073527,4.2187994,2370.4,2369.5,17.16002672]
[1747637073729,4.21881641,2370.4,2369.8,13.01576996]
[1747637073926,4.21914335,2370.2,2369.9,17.12582575]
[1747637074249,4.21914335,2370.2,2370.0,0.13182575]
[1747637074401,4.21896423,2370.3,2369.9,16.994]
[1747637074605,4.21875518,2370.4,2369.9,22.46657104]
[1747637074837,4.21875518,2370.4,2370.0,8.985]
[1747637075352,0.7936,2370.8,2370.0,8.985]
[1747637075501,4.21863642,2370.5,2370.1,0.04218777]
[1747637075701,4.21870536,2370.4,2370.0,8.985]
[1747637075928,4.21870536,2370.4,2370.1,0.8930869]
[1747637076127,4.21870536,2370.4,2370.1,8.8930869]
[1747637077447,4.21870536,2370.4,2370.2,8.982]
[1747637078017,4.21887524,2370.3,2370.1,0.8930869]
[1747637078203,4.21887524,2370.3,2370.2,8.993]
[1747637079490,0.7936,2370.8,2369.8,8.7961]
[1747637079687,4.21976538,2369.8,2369.7,27.22]
[1747637080004,0.789,2370.5,2369.7,27.22]
[1747637080155,4.21890817,2370.3,2369.8,8.8332]
[1747637080592,0.789,2370.8,2369.8,9.40932307]
[1747637080889,4.21940928,2370.0,2369.9,25.97]
[1747637082082,4.21940928,2370.0,2369.9,16.991]
[1747637083600,4.21914173,2370.2,2369.9,16.991]
[1747637083773,4.21938605,2370.1,2369.9,16.991]
[1747637083971,4.21940928,2370.0,2369.9,16.991]
[1747637084596,4.21940928,2370.0,2369.9,8.0]
[1747637084764,4.21940928,2370.0,2369.9,25.966]
[1747637084964,4.21940928,2370.0,2369.9,16.99]
[1747637087289,4.21927745,2370.1,2369.9,18.82158485]
[1747637087487,0.7907,2370.6,2369.9,18.82158485]
[1747637087488,5.00916404,2370.6,2370.0,0.8008]
[1747637087692,4.21920072,2370.2,2370.0,0.8008]
[1747637088068,4.21923125,2370.1,2370.0,0.8008]
[1747637088263,0.7907,2370.6,2370.0,13.02005625]
[1747637088484,4.21766112,2371.0,2370.0,8.8008]
[1747637088485,4.21871753,2370.4,2370.0,8.8008]
[1747637088801,4.21844181,2370.6,2370.2,8.0]
[1747637089001,4.21844181,2370.6,2370.3,8.972]
[1747637089307,4.21851929,2370.5,2370.4,9.8702]
[1747637089477,4.21851929,2370.5,2370.4,10.1272343]
[1747637091408,4.21851929,2370.5,2370.4,0.2570343]
[1747637091784,5.01641929,2370.5,2370.4,0.2570343]
[1747637092403,4.21905324,2370.2,2370.1,0.32305252]
[1747637093598,4.21889948,2370.3,2370.1,0.32305252]
[1747637093599,0.7559,2371.0,2370.1,0.49285675]
[1747637093784,4.21888546,2370.3,2370.1,0.49285675]
[1747637093994,4.21888546,2370.3,2370.2,9.20744984]
[1747637094195,4.21888546,2370.3,2370.2,9.46485675]
[1747637094500,4.21888546,2370.3,2370.2,0.25740691]
[1747637095708,4.21888546,2370.3,2370.2,0.49313189]
[1747637096610,4.21888546,2370.3,2370.2,9.46513189]
[1747637096921,4.21884207,2370.4,2370.2,9.46513189]
[1747637097074,4.21887524,2370.3,2370.2,9.22940691]
[1747637097273,4.21887524,2370.3,2370.2,18.19540691]
[1747637097697,4.21887524,2370.3,2370.2,18.43135771]
[1747637098503,4.21864114,2370.5,2370.2,18.43135771]
[1747637098703,4.21887524,2370.3,2370.2,18.19540691]
[1747637099014,4.21879073,2370.4,2370.2,18.19540691]
[1747637099729,4.21887524,2370.3,2370.2,18.19540691]
[1747637100033,4.21854977,2370.5,2370.3,0.25740691]
[1747637100242,4.2183271,2370.7,2370.3,9.10899286]
[1747637100401,4.21861921,2370.5,2370.3,1.06680691]
[1747637100733,4.13271436,2371.3,2370.4,0.23607535]
[1747637100934,4.21851929,2370.5,2370.4,0.23607535]
[1747637101102,4.21851929,2370.5,2370.4,0.49348226]
[1747637101707,12.99391929,2370.5,2370.4,0.25740691]
[1747637101927,4.97238732,2369.9,2369.8,0.32305252]
[1747637102115,9.10510168,2369.9,2369.8,0.32305252]
[1747637102326,20.30567878,2369.9,2369.8,0.32305252]
[1747637103328,20.30567878,2369.9,2369.6,0.43195629]
[1747637103329,8.55,2369.8,2369.6,0.43195629]
[1747637103627,21.95604345,2369.7,2369.6,0.43195629]
[1747637103832,22.50604345,2369.7,2369.6,0.43195629]
[1747637104030,4.98404345,2369.7,2369.6,0.43195629]
[1747637104243,8.70081456,2369.7,2369.6,0.43195629]
[1747637104643,9.20081456,2369.7,2369.6,0.43195629]
[1747637105339,17.20081456,2369.7,2369.6,0.43195629]
[1747637105704,4.22154677,2368.8,2368.7,9.7716]
[1747637105906,4.22133809,2369.0,2368.7,9.7716]
[1747637106131,4.13271436,2369.4,2368.7,9.7716]
[1747637106444,4.22129159,2369.0,2368.7,9.7716]
[1747637106842,4.13271436,2369.4,2368.7,0.7986]
[1747637107139,4.2214549,2368.9,2368.8,0.25747013]
[1747637108345,8.35331615,2369.4,2368.8,0.25747013]
[1747637108346,4.22129277,2369.0,2368.8,0.25747013]
[1747637108647,4.22136856,2368.9,2368.8,0.25747013]
[1747637108844,4.22177543,2368.7,2368.5,9.29153562]
[1747637109031,4.22065588,2369.3,2368.6,8.974]
[1747637109231,4.22065588,2369.3,2368.4,0.8136]
[1747637109232,4.22208148,2368.5,2368.4,0.8136]
[1747637109458,4.22194903,2368.6,2368.4,8.974]
[1747637109747,0.83533702,2369.2,2368.4,8.974]
[1747637109748,0.8211,2369.3,2368.6,8.0]
[1747637109911,4.22127462,2369.0,2368.5,8.8269]
[1747637110344,0.5,2369.1,2368.6,0.2570947]
[1747637110545,4.22172499,2368.7,2368.6,0.2570947]
[1747637111340,4.22161062,2368.8,2368.6,0.2570947]
[1747637111850,4.22172499,2368.7,2368.6,0.2570947]
[1747637112146,4.22172499,2368.7,2368.6,8.975]
[1747637113063,4.22225975,2368.4,2368.3,27.0084]
[1747637113352,4.22225975,2368.4,2368.3,44.9414]
[1747637113557,4.22225975,2368.4,2368.3,45.19818202]
[1747637113722,4.22225975,2368.4,2368.3,36.24018202]
[1747637113933,4.22225975,2368.4,2368.3,0.25678202]
[1747637114141,5.05135975,2368.4,2368.3,0.25678202]
[1747637116243,4.22350804,2367.7,2367.6,18.225]
[1747637116551,4.22404325,2367.4,2367.3,8.976]
[1747637116914,4.22457859,2367.1,2367.0,8.0]
[1747637117155,4.22457859,2367.1,2367.0,16.976]
[1747637117558,4.88561436,2367.7,2367.0,8.976]
[1747637117747,4.22457859,2367.1,2367.0,8.976]
[1747637118462,5.01025707,2367.0,2366.9,0.43195629]
[1747637118618,5.01132826,2366.4,2365.8,1.08870212]
[1747637118970,9.14404262,2366.4,2365.8,1.08870212]
[1747637119262,4.22689999,2365.8,2365.7,1.24870423]
[1747637119494,4.22679512,2365.9,2365.7,0.42630423]
[1747637119635,4.22689999,2365.8,2365.7,0.42630423]
[1747637120856,4.22659976,2366.0,2365.7,0.42630423]
[1747637121064,22.45587181,2367.0,2365.7,0.42630423]
[1747637121065,4.13271436,2366.6,2365.7,0.42630423]
[1747637121356,4.13271436,2366.9,2366.2,8.0]
[1747637121560,4.13271436,2366.9,2365.9,0.7627]
[1747637121763,4.22609969,2366.3,2365.9,0.7627]
[1747637121962,4.22573413,2366.5,2365.9,18.6817]
[1747637122256,4.22511407,2366.8,2365.9,0.7627]
[1747637122466,4.22654268,2366.0,2365.9,0.7627]
[1747637122836,0.8219,2366.4,2365.9,0.7627]
[1747637123027,4.22622987,2366.2,2365.9,0.7627]
[1747637123239,4.22654268,2366.0,2365.9,0.7627]
[1747637123644,4.22637304,2366.1,2365.9,0.7627]
[1747637123959,4.22654268,2366.0,2365.9,0.7627]
[1747637124159,0.8219,2366.4,2365.5,0.7752]
[1747637124160,4.29267933,2366.3,2365.5,0.7752]
[1747637124364,4.2271864,2365.7,2365.5,0.7752]
[1747637124534,4.22725735,2365.6,2365.5,0.7752]
[1747637124950,4.22713707,2365.7,2365.5,0.7752]
[1747637125270,0.51145793,2366.2,2365.5,0.7752]
[1747637125564,0.51145793,2366.2,2365.5,8.7752]
[1747637125750,4.22705499,2365.8,2365.5,0.7752]
[1747637125932,4.22683371,2365.9,2365.5,8.7752]
[1747637126132,4.22692319,2365.8,2365.5,8.7752]
[1747637127160,0.8219,2366.4,2365.5,8.7752]
[1747637127462,4.22603459,2366.3,2365.7,5.03814712]
[1747637127662,4.22547114,2366.6,2365.8,8.958]
[1747637127862,4.22547114,2366.6,2365.8,17.922]
[1747637127863,4.22666079,2366.0,2365.8,17.922]
[1747637128163,4.22613158,2366.3,2365.9,8.0]
[1747637129365,4.22620208,2366.2,2365.9,8.0]
[1747637129584,4.22618544,2366.2,2365.9,8.0]
[1747637130942,0.7773,2366.7,2365.9,8.0]
[1747637131158,4.22594665,2366.4,2365.9,8.0]
[1747637131337,5.00264455,2366.7,2366.0,8.965]
[1747637131565,4.22642607,2366.1,2365.7,8.8112]
[1747637131761,4.22689999,2365.8,2365.7,0.8112]
[1747637131958,4.99754059,2366.1,2365.4,8.965]
[1747637132272,5.00853734,2366.4,2365.4,8.965]
[1747637132469,4.22600684,2366.3,2365.4,8.965]
[1747637132766,4.22650956,2366.1,2365.5,8.04226996]
[1747637132969,4.22648184,2366.1,2365.6,8.7729]
[1747637133538,4.22645873,2366.1,2365.6,13.00005595]
[1747637133780,4.22631399,2366.2,2365.7,1.3000056]
[1747637133946,4.22642925,2366.1,2365.7,1.3000056]
[1747637134264,4.22636404,2366.2,2365.8,8.956]
[1747637134467,4.22636404,2366.2,2365.6,8.7729]
[1747637134468,4.2265518,2366.0,2365.6,0.7729]
[1747637134679,4.22700836,2365.8,2365.7,16.965]
[1747637134882,4.22700836,2365.8,2365.7,8.0]